Cogmind - Beta 13 @@@ ROGUE MODE // 2024.06.03 @ 12:17:19 Player: Barbarossa Result: Self-destructed Performance ------------- Evolutions (3) 1500 Regions Visited (7) 1400 Robots Destroyed (77) 385 Value Destroyed (2259) 2259 Prototype IDs (11) 220 Alien Tech Used (0) 0 Bonus (236) 236 TOTAL SCORE: 6000 Bonus ------- High Alert Combat Kills 36 Entered Garrisons 200 Cogmind --------- Core Integrity 16/700 Matter 300/300 Energy 85/100 System Corruption 0% Temperature Cool (30) Movement Core (350) Ox6 Location -7/Garrison Parts ------- > --- POWER (1) -------- (None) > --- PROPULSION (4) --- (None) > --- UTILITY (6) ------ Large Storage Unit Improved Signal Interpreter Armor Integrity Analyzer > --- WEAPON (2) ------- (None) > --- INVENTORY (15) --- Improved Ion Engine Improved Cooling System Improved Cooling System Coolant Injector High-capacity Matter Pod (200) Microactuators Improved Light Armor Plating Heavy Beamcaster Heavy Beamcaster Micro-nuke Launcher Improved Datajack Plasma Cutter Great Maul Falx Peak State ------------ > --- POWER ------------ Antimatter Reactor > --- PROPULSION ------- Improved Carbon-fiber Leg Improved Carbon-fiber Leg Improved Carbon-fiber Leg Improved Carbon-fiber Leg > --- UTILITY ---------- Large Storage Unit Improved Signal Interpreter Melee Analysis Suite Armor Integrity Analyzer Nanoactuators Improved Medium Armor Plating > --- WEAPON ----------- Power Maul Power Maul > --- INVENTORY -------- Aluminum Leg Improved Cooling System Improved Cooling System Coolant Injector High-capacity Matter Pod Microactuators Actuator Array Improved Light Armor Plating Gatling Laser Micro-nuke Launcher Improved Datajack Plasma Cutter Great Maul Great Maul Falx [Rating: 58] Favorites ----------- Power Improved Ion Engine Engine Improved Ion Engine Reactor Antimatter Reactor Propulsion Aluminum Leg Leg Aluminum Leg Wheel Wheel Utility Large Storage Unit Device Cooling System Storage Large Storage Unit Processor Signal Interpreter Protection Medium Armor Plating Weapon Medium Laser Energy Gun Medium Laser Energy Cannon Advanced Beam Cannon Impact Weapon Power Maul Slashing Weapon Blade Saw Build | -11 -10 -9 -8 -7 -7 -7 -7 ------- Run | Yrd Mat Mat Mat Fac Was Fac Gar Slots Evolved 6 | . . 2 2 2 . . . Power . | . . . . . . . . Propulsion 2 | . . 2 . . . . . Utility 4 | . . . 2 2 . . . Weapon . | . . . . . . . . Parts Attached 89 | . 7 23 32 22 2 1 2 Power 11 | . . 3 5 2 1 . . Engine 10 | . . 3 5 2 . . . Core . | . . . . . . . . Reactor 1 | . . . . . 1 . . Propulsion 35 | . 1 14 12 6 . . 2 Treads . | . . . . . . . . Leg 34 | . 1 14 12 6 . . 1 Wheel 1 | . . . . . . . 1 Hover . | . . . . . . . . Flight . | . . . . . . . . Utility 22 | . 4 1 8 7 1 1 . Device 6 | . 1 . 1 3 1 . . Storage 3 | . 2 1 . . . . . Processor 6 | . 1 . 2 2 . 1 . Hackware . | . . . . . . . . Protection 7 | . . . 5 2 . . . Artifact . | . . . . . . . . Weapon 21 | . 2 5 7 7 . . . Energy Gun 13 | . 2 3 5 3 . . . Energy Cannon 2 | . . 2 . . . . . Ballistic Gun . | . . . . . . . . Ballistic Cannon . | . . . . . . . . Launcher . | . . . . . . . . Special Weapon . | . . . . . . . . Impact Weapon 5 | . . . 2 3 . . . Slashing Weapon 1 | . . . . 1 . . . Piercing Weapon . | . . . . . . . . Special Melee Weapon . | . . . . . . . . Unidentified Prototypes 2 | . . 1 . 1 . . . Parts Lost 28 | . . 7 4 5 . . 12 Power 5 | . . 2 . 2 . . 1 Propulsion 16 | . . 5 4 1 . . 6 Utility 5 | . . . . 2 . . 3 Weapon 2 | . . . . . . . 2 Highest Loss Streak 12 | . . 3 3 3 . . 12 To Critical Strikes . | . . . . . . . . Average Slot Usage (%) 94 | . 99 87 96 93 100 100 95 Engine 8 | . 14 10 8 6 3 . . Leg 30 | . 27 32 32 28 30 30 27 Device 6 | . 5 . 9 11 7 7 6 Storage 9 | . 14 11 9 7 7 7 7 Processor 12 | . 8 11 9 15 23 23 23 Protection 4 | . . . 8 4 7 7 6 Energy Gun 12 | . 28 13 9 7 . . . Energy Cannon 4 | . . 8 7 . . . . Impact Weapon 3 | . . . 1 4 15 15 15 Naked Turns . | . . . . . . . . Heaviest Build 50 | 13 29 35 45 49 50 50 50 Greatest Support 72 | 20 20 43 43 72 72 72 72 Greatest Overweight (x) 8 | . 1 1 1 1 . . 8 Average Overweight (x) . | . . . . . . . . Largest Inventory Capacity 15 | . 15 15 15 15 15 15 15 Average Capacity 13 | . 8 14 15 15 15 15 15 Most Carried 15 | . 10 15 15 15 15 15 15 Average Carried 12 | . 7 11 14 14 14 15 14 Final Capacity 15 | 8 10 15 15 15 15 15 15 Final Carried 15 | 6 10 15 15 15 15 15 14 Class Distribution -------------------- 51% | Mutant 28% | Scavenger-Mutant 16% | Gladiator 4% | Scavenger-Gladiator Dominant Class ---------------- Mutant | -10/Materials Mutant | -9/Materials Scavenger-Mutant | -8/Materials Mutant | -7/Factory Gladiator | -7/Waste Gladiator | -7/Factory Gladiator | -7/Garrison Resources | -11 -10 -9 -8 -7 -7 -7 -7 ----------- Run | Yrd Mat Mat Mat Fac Was Fac Gar Matter Collected 1231 | 200 50 395 337 141 88 . 20 Remotely . | . . . . . . . . Salvage Created 3182 | . 298 924 1294 322 . . 344 Parts 125 | . 7 41 59 12 . . 6 Haulers Intercepted 5 | . . 3 2 . . . . Recyclers Shooed 1 | . . 1 . . . . . Parts Field Recycled . | . . . . . . . . Retrieved Matter . | . . . . . . . . Parts Self-Destructed . | . . . . . . . . Prevented . | . . . . . . . . Kills | -11 -10 -9 -8 -7 -7 -7 -7 ------- Run | Yrd Mat Mat Mat Fac Was Fac Gar Combat Hostiles Destroyed 62 | . 5 21 23 6 . . 7 Melee 7 | . . . 2 3 . . 2 Guns 30 | . 5 15 8 2 . . . Cannons 14 | . . 3 11 . . . . Classes Destroyed 10 | . 3 4 3 . . . . Worker 2 | . . . 1 1 . . . Hauler 5 | . . 3 2 . . . . Recycler 5 | . 1 1 3 . . . . Operator 1 | . 1 . . . . . . Watcher 2 | . . 1 1 . . . . Swarmer 17 | . . 10 6 1 . . . Cutter 3 | . . . 3 . . . . Grunt 27 | . 5 8 8 2 . . 4 Sentry 13 | . . 3 4 3 . . 3 Specialist 2 | . . . 2 . . . . Best Kill Streak 6 | . 3 6 6 2 . . 4 Combat Bots Only 6 | . 2 6 4 2 . . 4 Max Kills in Single Turn 2 | . 1 2 1 1 . . 1 Gunslinging . | . . . . . . . . Exploded . | . . . . . . . . Melee 1 | . . . 1 1 . . 1 Uniques/NPCs Destroyed . | . . . . . . . . Combat | -11 -10 -9 -8 -7 -7 -7 -7 -------- Run | Yrd Mat Mat Mat Fac Was Fac Gar Hostile Shots Fired 712 | . 30 145 118 155 . . 264 Missed 240 | . 7 38 41 71 . . 83 Damage Taken 5243 | . 282 1139 1211 801 . 18 1792 Core 1122 | . 112 184 142 108 . 18 558 Absorbed by Shields . | . . . . . . . . Regen/Repaired (Parts) 301 | . 39 149 . . 96 . 17 Core Remaining (%) 70 | 100 55 54 74 . . . . Volleys Fired 214 | . 35 87 80 12 . . . Largest 2 | . 2 2 2 2 . . . Hottest 149 | . 100 136 136 149 . . . Shots Fired 425 | . 70 172 159 24 . . . Gun 305 | . 70 130 81 24 . . . Cannon 120 | . . 42 78 . . . . Launcher . | . . . . . . . . Special . | . . . . . . . . Kinetic . | . . . . . . . . Thermal 425 | . 70 172 159 24 . . . Explosive . | . . . . . . . . Electromagnetic . | . . . . . . . . Robot Hit Streak 19 | . 8 10 15 19 . . . Robot Miss Streak 7 | . 4 7 4 1 . . . Penetration Max . | . . . . . . . . Secondary Targets 3 | . . 3 . . . . . Max Gunslinging Chain 1 | . . 1 . . . . . Shots Hit Robots 315 | . 46 106 113 35 . . 15 Core Hits 108 | . 17 35 38 16 . . 2 Critical Kills 1 | . . . . . . . 1 Critical Parts Destroyed 8 | . . . 2 1 . . 5 Critical Strikes 27 | . 3 9 5 4 . . 6 Burn 16 | . 3 9 3 1 . . . Smash 9 | . . . 2 1 . . 6 Sever 2 | . . . . 2 . . . Melee Attacks 45 | . . . 8 20 . . 17 Impact 29 | . . . 8 4 . . 17 Slashing 16 | . . . . 16 . . . Piercing . | . . . . . . . . Sneak Attacks . | . . . . . . . . Combat Hostiles . | . . . . . . . . Follow-up Attacks 7 | . . . . 3 . . 4 Damage Inflicted 5859 | . 552 1611 2328 758 . . 610 Guns 2789 | . 548 998 859 384 . . . Cannons 1768 | . . 613 1155 . . . . Explosions . | . . . . . . . . Melee 1298 | . . . 314 374 . . 610 Ramming 4 | . 4 . . . . . . Kinetic . | . . . . . . . . Thermal 4557 | . 548 1611 2014 384 . . . Explosive . | . . . . . . . . Electromagnetic . | . . . . . . . . Impact 1076 | . . . 314 152 . . 610 Slashing 222 | . . . . 222 . . . Piercing . | . . . . . . . . Highest Corruption 3 | . . . 3 . . . . Average Corruption 2 | . . . 2 . . . . Corruption Purged . | . . . . . . . . Corruption Blocked . | . . . . . . . . Effects 9 | . . . 9 . . . . Message Errors 2 | . . . 2 . . . . Matter Fused 2 | . . . 2 . . . . Energy Discharges 1 | . . . 1 . . . . Parts Rejected 1 | . . . 1 . . . . Data Loss (minor) 1 | . . . 1 . . . . Data Loss (major) 1 | . . . 1 . . . . Alerts 1 | . . . 1 . . . . Overload Shots . | . . . . . . . . Overflow Damage 445 | . . . 159 59 . . 227 Projectiles 7 | . . . 7 . . . . Explosions . | . . . . . . . . Melee 438 | . . . 152 59 . . 227 Knockbacks 5 | . 1 . 1 . . . 3 Impact 5 | . 1 . 1 . . . 3 Kinetic . | . . . . . . . . Secondary . | . . . . . . . . Self-Inflicted Damage . | . . . . . . . . Shots . | . . . . . . . . Rammed . | . . . . . . . . Targets Rammed 1 | . 1 . . . . . . Kicked 1 | . 1 . . . . . . Crushed . | . . . . . . . . Highest Temperature 354 | . 216 354 153 30 . . 82 Average Temperature 77 | . 57 102 32 15 . . 32 Received Heat Transfer 2022 | . 159 354 477 204 . . 828 Effects 5 | . . 5 . . . . . Interference 5 | . . 5 . . . . . Siege Activations . | . . . . . . . . Robots Corrupted . | . . . . . . . . Combat Hostiles . | . . . . . . . . Parts Fried 19 | . . . 10 1 . . 8 Impact Corruptions 17 | . . . 5 3 . . 9 Robots Melted 4 | . . 3 . 1 . . . Combat Hostiles 4 | . . 3 . 1 . . . Parts Melted 25 | . 4 10 6 5 . . . Heat Transferred 11665 | . 1707 4736 4329 893 . . . Parts Sabotaged . | . . . . . . . . Parts Stolen . | . . . . . . . . Parts Stripped . | . . . . . . . . Power Chain Reactions . | . . . . . . . . Alert | -11 -10 -9 -8 -7 -7 -7 -7 ------- Run | Yrd Mat Mat Mat Fac Was Fac Gar Peak Influence 436 | . 128 355 436 221 12 12 160 Initial 131 | . . . . 131 12 8 8 Average 156 | . 55 206 242 146 12 8 59 Maximum Alert Level 2 | . . 1 2 1 . . . Low Security (%) 65 | . 100 34 34 96 100 100 100 Level 1 32 | . . 65 57 3 . . . Level 2 2 | . . . 8 . . . . Level 3 . | . . . . . . . . Level 4 . | . . . . . . . . Level 5 . | . . . . . . . . High Security . | . . . . . . . . Max Security . | . . . . . . . . Squads Dispatched 12 | . 1 2 5 4 . . . Investigation 4 | . . . 3 1 . . . Extermination . | . . . . . . . . Reinforcement 5 | . 1 2 2 . . . . Assault . | . . . . . . . . Garrison 3 | . . . . 3 . . . Intercept . | . . . . . . . . Searches Triggered . | . . . . . . . . Construction Impeded . | . . . . . . . . Haulers Reinforced . | . . . . . . . . Active Scanning Responses . | . . . . . . . . Cargo Convoy Interrupts . | . . . . . . . . Stealth | -11 -10 -9 -8 -7 -7 -7 -7 --------- Run | Yrd Mat Mat Mat Fac Was Fac Gar Distress Signals 2 | . . . 2 . . . . Communications Jammed . | . . . . . . . . Distress Signals . | . . . . . . . . Times Spotted 101 | . 12 28 32 10 . . 19 Peak Tracking Total 12 | . 3 6 5 4 . . 12 Tactical Retreats 8 | . 1 . 3 3 . . 1 Traps | -11 -10 -9 -8 -7 -7 -7 -7 ------- Run | Yrd Mat Mat Mat Fac Was Fac Gar Traps Triggered 8 | . . 3 3 2 . . . Indirectly . | . . . . . . . . Trap Hack Attempts . | . . . . . . . . Triggered . | . . . . . . . . Disarmed . | . . . . . . . . Reprogrammed . | . . . . . . . . Reused . | . . . . . . . . Traps Extracted . | . . . . . . . . Installed . | . . . . . . . . Triggered . | . . . . . . . . Machines | -11 -10 -9 -8 -7 -7 -7 -7 ---------- Run | Yrd Mat Mat Mat Fac Was Fac Gar Machines Disabled 3 | . . 1 2 . . . . Max in Single Turn 1 | . . 1 1 . . . . Garrison Access 1 | . . . 1 . . . . Machines Repaired . | . . . . . . . . Machines Dismantled . | . . . . . . . . Machines Sabotaged . | . . . . . . . . Overloaded Fab Kills . | . . . . . . . . Hacking | -11 -10 -9 -8 -7 -7 -7 -7 --------- Run | Yrd Mat Mat Mat Fac Was Fac Gar Machines Accessed 24 | . 7 4 8 4 . 1 . Terminals 13 | . 6 2 4 1 . . . Fabricators 2 | . . . . 2 . . . Repair Stations 2 | . 1 1 . . . . . Recycling Units 2 | . . 1 1 . . . . Scanalyzers 2 | . . . 2 . . . . Garrison Access 3 | . . . 1 1 . 1 . Total Hacks 84 | . 21 18 33 11 . 1 . Successful 40 | . 10 9 17 3 . 1 . Failed 43 | . 11 8 16 8 . . . Catastrophic 7 | . 3 1 1 2 . . . Database Lockouts 1 | . . 1 . . . . . Manual 50 | . 18 10 17 5 . . . Terminals 51 | . 19 10 17 5 . . . Fabricators 3 | . . . . 3 . . . Repair Stations 9 | . 2 7 . . . . . Recycling Units 5 | . . 1 4 . . . . Scanalyzers 10 | . . . 10 . . . . Garrison Access 6 | . . . 2 3 . 1 . Terminal Hacks 8 | . 1 5 2 . . . . Prototype ID Bank 5 | . 1 3 1 . . . . Unreport Threat 3 | . . 2 1 . . . . Fabricator Hacks 2 | . . . . 2 . . . Load Schematic 1 | . . . . 1 . . . Build 1 | . . . . 1 . . . Repair Station Hacks 6 | . 2 4 . . . . . Scan Component 3 | . 1 2 . . . . . Repair 3 | . 1 2 . . . . . Recycling Unit Hacks 1 | . . . 1 . . . . Retrieve Components 1 | . . . 1 . . . . Scanalyzer 10 | . . . 10 . . . . Insert Component 5 | . . . 5 . . . . Analyze 5 | . . . 5 . . . . Garrison Access Hacks 2 | . . . 1 . . 1 . Unlock Access 1 | . . . . . . 1 . Seal Access 1 | . . . 1 . . . . Unauthorized Hacks 11 | . 7 . 3 1 . . . Terminals 11 | . 7 . 3 1 . . . Botnet 9 | . 5 . 3 1 . . . Operators 2 | . 2 . . . . . . Fabricators . | . . . . . . . . Repair Stations . | . . . . . . . . Recycling Units . | . . . . . . . . Scanalyzers . | . . . . . . . . Garrison Access . | . . . . . . . . Data Cores Recovered . | . . . . . . . . Used . | . . . . . . . . Hacking Detections 19 | . 6 3 7 3 . . . Full Trace Events 4 | . 1 . 2 1 . . . Feedback Events . | . . . . . . . . Feedback Blocked . | . . . . . . . . Robot Schematics Acquired . | . . . . . . . . Robots Built . | . . . . . . . . Authchips . | . . . . . . . . Time . | . . . . . . . . Total Robot Build Rating . | . . . . . . . . Part Schematics Acquired 5 | . . . 5 . . . . Parts Built 2 | . . . . 2 . . . Authchips . | . . . . . . . . Time 28 | . . . . 28 . . . Total Part Build Rating 8 | . . . . 8 . . . Parts Repaired 3 | . 1 2 . . . . . Time 84 | . 26 58 . . . . . Parts Recycled . | . . . . . . . . Recycled Matter . | . . . . . . . . Retrieved Matter . | . . . . . . . . Retrieved Components 10 | . . . 10 . . . . Parts Scanalyzed 5 | . . . 5 . . . . Part Schematics Acquired 5 | . . . 5 . . . . Parts Damaged 2 | . . . 2 . . . . Bothacking | -11 -10 -9 -8 -7 -7 -7 -7 ------------ Run | Yrd Mat Mat Mat Fac Was Fac Gar Used RIF Installer . | . . . . . . . . Robots Hacked . | . . . . . . . . Non-combat . | . . . . . . . . Combat . | . . . . . . . . Robot Hacks Applied . | . . . . . . . . Relay Couplers Released . | . . . . . . . . Fabnet Peak Effective % . | . . . . . . . . Robots Rewired . | . . . . . . . . Allies Hacked . | . . . . . . . . Hacks Repelled . | . . . . . . . . Allies | -11 -10 -9 -8 -7 -7 -7 -7 -------- Run | Yrd Mat Mat Mat Fac Was Fac Gar Total Allies 20 | . . . . . 20 . . Largest Group 20 | . . . . . 20 6 4 Highest-Rated Group 531 | . . . . . 531 131 103 Highest-Rated Ally 31 | . . . . . 31 31 31 Total Orders . | . . . . . . . . Ally Attacks 13 | . . . . . . . 13 Total Damage 149 | . . . . . . . 149 Kills . | . . . . . . . . Allies Corrupted . | . . . . . . . . Allies Melted . | . . . . . . . . Intel | -11 -10 -9 -8 -7 -7 -7 -7 ------- Run | Yrd Mat Mat Mat Fac Was Fac Gar Robot Analysis Total . | . . . . . . . . Derelict Logs Recovered . | . . . . . . . . Drone Launches . | . . . . . . . . Drone Recoveries . | . . . . . . . . Exploration | -11 -10 -9 -8 -7 -7 -7 -7 ------------- Run | Yrd Mat Mat Mat Fac Was Fac Gar Turns Passed 4416 | . 802 1100 1175 805 271 82 181 Spaces Moved 2176 | 1 452 446 580 347 214 68 68 Core 1 | . . . . . . . 1 Treads . | . . . . . . . . Legs 2175 | 1 452 446 580 347 214 68 67 Wheels . | . . . . . . . . Hover . | . . . . . . . . Flight . | . . . . . . . . Fastest Speed 120 | 120 120 120 120 120 120 120 120 Average Speed 134 | 120 120 153 137 136 120 120 128 Slowest Speed 450 | 120 190 190 190 190 120 120 450 Overloaded Moves . | . . . . . . . . Propulsion Burnouts . | . . . . . . . . Robots Hopped . | . . . . . . . . Cave-ins Triggered . | . . . . . . . . Exploration Rate (%) 34 | 2 63 38 51 9 94 4 14 Regions Visited 7 Branch Regions . Pre-discovered Areas . | . . . . . . . . Known Exits Taken 3 | . 1 . 1 . . 1 . Unknown Exits Taken 2 | 1 . 1 . . . . . Scrap Searched . | . . . . . . . . Spaces Dug . | . . . . . . . . Terrain Destroyed . | . . . . . . . . Melee . | . . . . . . . . Projectile . | . . . . . . . . AOE . | . . . . . . . . Terrain Rammed . | . . . . . . . . Walls Destroyed . | . . . . . . . . Machines Disabled . | . . . . . . . . Actions | -11 -10 -9 -8 -7 -7 -7 -7 --------- Run | Yrd Mat Mat Mat Fac Was Fac Gar Total 3193 | . 643 684 788 634 232 68 144 Wait 549 | . 129 107 40 211 1 . 61 Move 2170 | . 451 445 579 347 213 67 68 Hop . | . . . . . . . . Pick Up 62 | . 10 16 20 9 7 . . Fast Attach 31 | . 3 11 8 8 . . 1 Attach 24 | . . 9 8 6 . . 1 Detach 5 | . . . 3 2 . . . Swap 35 | . 4 3 16 9 2 1 . Drop 65 | . 10 6 26 14 9 . . Fire 214 | . 35 87 80 12 . . . Melee 37 | . . . 8 16 . . 13 Ram . | . . . . . . . . Kick 1 | . 1 . . . . . . Crush . | . . . . . . . . Escape Stasis . | . . . . . . . . Rewire . | . . . . . . . . Trap . | . . . . . . . . Miscellaneous . | . . . . . . . . Route ------- -11/Scrapyard -10/Materials (discovered 2 exits: *Mat x2) -9/Materials (discovered 2 exits: *Mat / [*Min]) -8/Materials -7/Factory -7/Waste -7/Factory -7/Garrison History --------- Turn | Location | Event 1 | -11/Scrapyard | Discovered new exit (range 0) 1 | -11/Scrapyard | Entered Materials 318 | -10/Materials | Build established: Mutant 489 | -10/Materials | Repaired Aluminum Leg 598 | -10/Materials | Discovered new exit (range 4) 741 | -10/Materials | Discovered new exit (range 14) 802 | -10/Materials | Identified exit to Materials 803 | -10/Materials | Entered another Materials area 803 | -9/Materials | Evolved 2 slots: Propulsion x2 1196 | -9/Materials | Lost 3 parts (3n) 1535 | -9/Materials | Discovered new exit (range 14) 1830 | -9/Materials | Repaired Imp. Aluminum Leg 1857 | -9/Materials | Repaired Aluminum Leg 1878 | -9/Materials | Discovered new exit (range 15) 1892 | -9/Materials | Central database locked down 1903 | -9/Materials | Entered another Materials area 1903 | -8/Materials | Evolved 2 slots: Utility x2 2262 | -8/Materials | Discovered new exit (range 8) 2270 | -8/Materials | Identified exit to Factory 2506 | -8/Materials | Build established: Scavenger-Mutant 2791 | -8/Materials | Lost 3 parts (3n) 3078 | -8/Materials | Entered Factory 3078 | -7/Factory | Evolved 2 slots: Utility x2 3440 | -7/Factory | Garrison activated, responded to threat 3500 | -7/Factory | Build established: Mutant 3664 | -7/Factory | Lost 3 parts (1p1n1u) 3705 | -7/Factory | Fabricated Power Maul (x2) 3883 | -7/Factory | Sucked down chute 3883 | -7/Factory | Entered Waste 3884 | -7/Waste | Joined by Warlord forces that had cleared the area 4011 | -7/Waste | Build established: Gladiator 4045 | -7/Waste | Discovered new exit (range 12) 4151 | -7/Waste | Identified exit to Factory 4154 | -7/Waste | Entered Factory 4154 | -7/Factory | Accompanied by 6 allies 4233 | -7/Factory | Identified exit to Garrison 4236 | -7/Factory | Entered Garrison 4236 | -7/Garrison | Accompanied by 4 allies 4337 | -7/Garrison | Lost 3 allies 4370 | -7/Garrison | Triggered checkpoint 4408 | -7/Garrison | Core integrity fell below 50% 4416 | -7/Garrison | Core integrity fell below 20% 4417 | -7/Garrison | Self-destructed Last Messages --------------- (Smash). 04401_ Destroyed Flak Gun. 04401_ Y-54 Guardian system corrupted by crushing effect. 04402_ SQ-TOM(m) destroyed. 04403_ Destroyed Imp. Heat Sink. 04403_ Y-54 Guardian system corrupted by crushing effect. 04404_ Y-54 Guardian system terminally corrupted. 04404_ Imp. Heat Sink fried. 04404_ Critical hit (Burn: +37). 04404_ Imp. Medium Armor Plating destroyed. 04404_ Aluminum Leg destroyed. 04404_ Imp. Carbon-fiber Leg destroyed. 04407_ Nanoactuators destroyed. 04414_ Power Maul destroyed. 04416_ Acquired Wheel. 04417_ Melee Analysis Suite destroyed. 04417_ Wheel destroyed. Map ----- +----------------------------------------------------+ | ??????????????????????????????????????????# #?? | | ??????????????????????????????????????????# #?? | | ??????????????????????????????????????????### #?? | | ????????????????????????????????????????????# #?? | | ????????????????????????????????????????????# #?? | | ????????????????????????????????????????????# #?? | | ????????????????????????????????????????????# #?? | | ????????????????????????????????????????????# #?? | | ????????????????????????????????????????????# #?? | | ????????????????????????????????????????????# #?? | | ???????????????????????###################### #?? | | ???????????????????????# =% % % #?? | | ???????????????????????# !%%%%! #?? | | ???????????????????????# ######################?? | | ???????????????????????# #??????????????????????? | | ???????????????????????# #??????????????????????? | | ???????????????????????# #??????????????????????? | | ???????????????????????# #??????????????????????? | | ?????????????????####### #??????????????????????? | | ?????????????#???# ## #??????????????????????? | | ????????????## ## ## ##?????????????????????? | | ?????????#### %= ######## #??????????? | | ?????? gg =Y ?????????? | | ?????? gb*[%! ?????????? | | ?????????#### ## % ##=%!############??????????? | | ????????????#????# ## @ #?????????????????????? | | ??????????????? gg #???????????????????? | | ????????????? g Y #???????????????????? | | ??????????? g #???????????????????? | | ??????????# g #???????????????????? | | ??????????### ## ## ###???????????????????? | | ????????????# ?# ^^ ## #?????????????????????? | | ????????????# ? ? ?????????????????????? | | ????????????# ? ? ?????????????????????? | | ????????????#? ? ?????????????????????? | | ?????????????? ## #######????????????????????? | | ?????????????? ??# ???????????????????????????? | | ?????????????????#####???????????????????????????? | | ?????????????????????????????????????????????????? | | ?????????????????????????????????????????????????? | | ?????????????????????????????????????????????????? | | ?????????????????????????????????????????????????? | | ?????????????????????????????????????????????????? | | ?????????????????????????????????????????????????? | | ?????????????????????????????????????????????????? | | ?????????????????????????????????????????????????? | | ?????????????????????????????????????????????????? | | ?????????????????????????????????????????????????? | | ?????????????????????????????????????????????????? | | ?????????????????????????????????????????????????? | +----------------------------------------------------+ Best States ------------- Heat Dissipation 56 Energy Generation 21 Energy Capacity 325 Matter Stores 300 Matter Capacity 300 Sight Range 16 Robot Scan Range 15 Terrain Scan Density 10 Armor Coverage 225 Melee Speed Boost 30 Evasion (%) 55 Melee Accuracy 5 Armor Integrity Analysis 30 Item Schematics ----------------- Maul | -8/Materials | Scanalyzed Imp. Aluminum Leg | -8/Materials | Scanalyzed Imp. Ion Engine | -8/Materials | Scanalyzed Actuator Array | -8/Materials | Scanalyzed Katana | -8/Materials | Scanalyzed Robot Schematics ------------------ None Fabricated ------------ Power Maul | x2 | -7/Factory | Preloaded Alien Tech Used ----------------- None Achievements -------------- None Challenges ------------ None Game ------ Seed StormParticleCapacitor Manual? 0 Play Time 00:35:28 Cumulative 202.7 hours Start 2024.06.03 @ 11:43:56 End 2024.06.03 @ 12:17:19 Sessions 1 Manual Loads 0 Difficulty Rogue Special Mode None Game No. 370 Rogue 370 Adventurer 0 Explorer 0 Win Type - Total 0 Types 0/0/0/0/0/0/0/0/0 Lore% 45 Gallery% 56 Achievement% 39 Wizard Run 0 Options --------- Layout 1 ASCII 0 Keyboard 0 Movement Mouse Keybinds 0 Fullscreen 1 Font 24/Smallcaps Map View 50x40 Zoom Use 0% Tactical HUD 1 Map Filters NONE Filters NONE Steam 1 RUN: 30630f89-2179-456f-988c-7425c2af9b96